bitfinex-derivatives/quotes_ETHF0:USTF0_20260203
["timestamp","ask_amount","ask_price","bid_price","bid_amount"]
[1770160103381,0.1612834,2221.1,2220.0,2.645]
[1770160103579,0.1612834,2221.1,2219.7,0.23042341]
[1770160103779,0.1612834,2221.1,2219.7,2.25887341]
[1770160103976,0.1557015,2220.8,2219.7,0.00487341]
[1770160105481,0.1557015,2220.8,2219.8,2.644]
[1770160106079,0.1557015,2220.6,2219.7,0.00487341]
[1770160106374,0.1557015,2220.6,2219.0,2.47962]
[1770160106582,0.1557015,2220.6,2219.4,0.16567176]
[1770160106983,0.2254,2221.2,2219.3,3.07849482]
[1770160106984,0.1557015,2220.9,2219.3,3.01857658]
[1770160107185,0.1557015,2220.9,2219.5,0.22557]
[1770160107482,0.1557015,2220.9,2219.5,0.3956698]
[1770160107682,0.1557015,2220.9,2219.6,4.898]
[1770160108288,0.1557015,2220.9,2219.7,0.16567176]
[1770160108486,0.1557015,2221.2,2219.8,0.16567176]
[1770160109483,0.1557015,2221.2,2220.1,0.22551]
[1770160110089,0.1557015,2221.2,2220.1,0.39118176]
[1770160110288,0.1557015,2221.2,2220.2,0.16567176]
[1770160110489,0.1557015,2221.2,2219.9,0.16567176]
[1770160110881,0.1557015,2221.2,2220.0,2.644]
[1770160111083,0.00370177,2221.3,2220.1,0.16567176]
[1770160111295,0.00370177,2221.3,2220.3,0.39116176]
[1770160111591,0.00370177,2221.3,2220.4,0.16567176]
[1770160113292,0.15940327,2221.3,2220.1,2.80967176]
[1770160113688,0.15940327,2221.3,2220.1,2.644]
[1770160113889,0.15940327,2221.3,2220.3,0.16567176]
[1770160114090,0.00370177,2221.3,2220.4,0.16567176]
[1770160114289,0.00370177,2221.3,2220.4,0.39115176]
[1770160114487,0.00370177,2221.3,2220.5,0.16567176]
[1770160114688,9.9e-06,2221.4,2220.5,0.16567176]
[1770160114889,0.2252,2223.2,2221.1,0.1557015]
[1770160115083,0.07833665,2223.0,2221.3,0.22538]
[1770160115288,0.22525,2222.7,2221.0,2.67310748]
[1770160115485,0.22525,2222.7,2220.9,2.82880898]
[1770160115792,0.00480441,2222.7,2220.9,0.00424654]
[1770160115993,0.22529,2222.3,2221.0,2.643]
[1770160116193,0.22529,2222.3,2220.9,2.64724654]
[1770160116791,0.22529,2222.3,2220.9,0.00424654]
[1770160117000,0.1557015,2222.2,2220.9,0.00424654]
[1770160119397,0.1557015,2222.2,2220.3,2.67310748]
[1770160119592,0.00480441,2222.7,2220.2,2.89860748]
[1770160119593,0.1557015,2221.7,2220.2,2.89860748]
[1770160119791,0.00480441,2222.7,2220.2,2.67310748]
[1770160119792,0.1557015,2221.5,2220.2,2.67310748]
[1770160119996,0.1557015,2221.5,2220.1,5.31610748]
[1770160120390,0.1557015,2221.5,2220.1,5.32030264]
[1770160120591,0.1557015,2221.5,2220.1,2.67730264]
[1770160120899,0.1557015,2221.4,2220.1,0.00419516]
[1770160121301,0.1557015,2221.3,2220.1,0.00419516]
[1770160121598,0.1557015,2221.2,2220.1,0.00419516]
[1770160121795,0.1557015,2220.8,2220.1,0.00419516]
[1770160122093,0.1557015,2220.8,2219.3,8.12345816]
[1770160122094,0.1557015,2220.7,2219.4,2.67310748]
[1770160122498,0.1557015,2220.7,2219.5,2.67310748]
[1770160122691,0.00445158,2220.8,2219.8,2.83877924]
[1770160122892,0.00445158,2220.8,2220.1,2.67310748]
[1770160123696,0.1557015,2221.3,2220.3,0.16527482]
[1770160123900,0.1557015,2221.3,2220.3,2.67310748]
[1770160124194,0.1557015,2221.3,2220.3,6.65231908]
[1770160124397,0.1557015,2221.1,2220.0,2.67310748]
[1770160124902,0.1557015,2220.9,2219.9,2.67310748]
[1770160125101,0.1557015,2220.9,2219.8,2.67702404]
[1770160125303,0.1557015,2220.8,2219.9,2.67310748]
[1770160125505,0.1557015,2220.6,2219.8,0.00391656]
[1770160125700,0.1557015,2220.4,2219.8,0.00391656]
[1770160125895,0.1557015,2220.2,2219.4,2.67310748]
[1770160126902,0.1557015,2220.2,2219.4,2.67800434]
[1770160128202,0.1557015,2220.7,2219.4,2.67800434]
[1770160128800,0.1557015,2220.7,2219.5,2.67310748]
[1770160129004,0.1557015,2220.7,2219.6,2.643]
[1770160130603,0.1557015,2220.7,2219.8,2.67310748]
[1770160130803,0.1675026,2221.0,2219.9,0.16480969]
[1770160131010,0.00486784,2221.1,2220.2,2.83791717]
[1770160131202,0.00486784,2221.1,2220.3,5.31610748]
[1770160131603,0.17237044,2221.1,2220.2,2.67310748]
[1770160131903,0.1675026,2220.9,2219.9,2.643]
[1770160132110,0.1675026,2220.9,2220.0,2.67310748]
[1770160132905,0.1675026,2220.9,2219.9,5.48091717]
[1770160133111,0.1675026,2220.9,2219.9,9.46012877]
[1770160133409,0.1675026,2220.9,2219.9,5.48091717]
[1770160133605,0.1675026,2220.9,2219.9,5.31610748]
[1770160133805,0.1675026,2221.0,2220.0,2.83791717]
[1770160134510,0.1675026,2221.0,2220.2,2.67310748]
[1770160135003,0.1675026,2221.0,2220.1,2.67310748]
[1770160135208,0.15312795,2220.8,2219.7,2.67310748]
[1770160136005,0.15312795,2220.6,2219.7,2.67310748]
[1770160136309,0.22552,2220.0,2219.3,3.9792116]
[1770160136509,0.15312795,2219.9,2218.9,3.9792116]
[1770160136805,0.15312795,2219.9,2219.0,2.67799444]
[1770160137011,0.15312795,2219.9,2218.9,2.67799444]
[1770160137208,0.15312795,2220.4,2219.1,0.16121367]
[1770160137407,0.15312795,2220.4,2219.1,0.16546716]
[1770160138312,0.15312795,2220.3,2219.1,0.00425349]
[1770160138613,0.15312795,2220.3,2219.1,2.64725349]
[1770160138808,0.15312795,2219.9,2219.1,0.00425349]
[1770160139205,0.15312795,2219.7,2218.5,2.643]
[1770160139404,0.15312795,2219.4,2218.4,3.9792116]
[1770160139610,0.15312795,2219.0,2217.5,5.30561547]
[1770160139807,0.22564,2218.9,2217.5,0.16121367]
[1770160140112,0.15312795,2218.9,2218.0,2.83920811]
[1770160140311,0.15866405,2218.9,2218.1,2.643]
[1770160140506,0.0055361,2218.9,2218.3,2.67799444]
[1770160140708,0.0055361,2218.9,2218.4,0.16121367]
[1770160140910,2.12581919,2220.3,2218.8,2.83920811]
[1770160140911,0.15312795,2220.2,2218.8,2.83920811]
[1770160141108,0.15312795,2220.2,2218.9,5.32099444]
[1770160141411,0.15312795,2220.2,2219.0,0.16121367]
[1770160141713,0.15312795,2220.2,2219.2,2.67799444]
[1770160141911,0.15732977,2220.2,2219.2,0.00367979]
[1770160142212,0.00420182,2220.2,2219.6,2.67799444]
[1770160142413,0.00420182,2220.2,2219.8,2.67799444]
[1770160142612,0.15732977,2220.2,2219.2,2.64767979]
[1770160142812,0.15732977,2220.2,2219.2,2.80889346]
[1770160143013,0.15732977,2220.2,2219.3,2.67799444]
[1770160143413,0.00420182,2220.2,2219.6,2.67799444]
[1770160143609,0.15312795,2221.0,2219.8,0.16121367]
[1770160143913,0.15312795,2221.0,2219.3,2.12581919]
[1770160143914,0.15312795,2221.0,2219.9,2.80521367]
[1770160144406,0.15312795,2221.5,2220.4,2.67799444]
[1770160144612,0.15312795,2221.5,2220.2,0.16121367]
[1770160144613,0.15643765,2221.5,2220.2,0.16121367]
[1770160144812,0.15643765,2221.5,2220.5,2.83920811]
[1770160145006,0.15643765,2221.5,2220.5,2.644]
[1770160145611,0.15643765,2221.5,2220.7,2.67799444]
[1770160145612,0.0033097,2221.5,2220.7,2.67799444]
[1770160145816,0.15643765,2221.5,2220.7,2.67799444]
[1770160146011,0.15643765,2221.5,2220.8,2.67799444]
[1770160146316,0.0033097,2221.5,2221.0,2.67799444]
[1770160146514,0.0033097,2221.5,2221.1,2.67799444]
[1770160146715,0.0033097,2221.5,2221.0,2.67799444]
[1770160147120,0.0033097,2221.5,2220.8,2.80992801]
[1770160147121,0.0033097,2221.5,2221.2,2.67799444]
[1770160147312,0.0033097,2221.5,2220.8,2.80992801]
[1770160147513,0.15312795,2222.9,2221.4,0.16121367]
[1770160147813,0.15312795,2222.9,2221.4,5.53098547]
[1770160148019,0.15312795,2222.9,2221.3,8.10982914]
[1770160148220,0.15312795,2222.9,2221.4,0.16121367]
[1770160148519,0.15780164,2222.9,2221.8,0.16121367]
[1770160148817,0.15312795,2223.9,2222.4,0.16121367]
[1770160149024,0.32281702,2224.9,2223.8,3.06433811]
[1770160149220,0.32281702,2224.9,2223.9,5.05721367]
[1770160149518,5.1553648,2226.4,2223.9,5.05721367]
[1770160149519,0.15312795,2225.8,2224.2,0.16121367]
[1770160149713,0.15312795,2225.8,2224.4,0.16121367]
[1770160149714,0.15699524,2225.8,2224.4,0.16121367]
[1770160149916,0.15312795,2225.6,2224.2,0.0040123]
[1770160150217,0.15312795,2225.6,2224.3,0.16121367]
[1770160150520,0.00386729,2225.8,2224.7,0.16121367]
[1770160150717,0.00386729,2225.8,2225.0,2.67799444]
[1770160150913,0.15312795,2226.4,2225.1,2.643]
[1770160151116,0.22196456,2227.5,2225.8,0.16121367]
[1770160151313,0.22196456,2227.5,2225.7,2.83341487]
[1770160151314,0.37509251,2227.5,2226.2,0.16121367]
[1770160151517,0.15312795,2227.4,2226.1,0.16121367]
[1770160151813,0.22196456,2227.5,2226.7,0.16121367]
[1770160152015,0.15312795,2227.4,2226.0,0.03025092]
[1770160152216,0.22750238,2227.5,2225.4,2.642]
[1770160152421,0.22750238,2227.5,2225.3,2.252]
[1770160152422,0.15312795,2226.8,2225.3,2.252]
[1770160152718,0.15312795,2226.6,2224.9,2.642]
[1770160152916,0.15312795,2226.3,2224.7,0.16121367]
[1770160153113,0.15312795,2226.3,2224.7,0.16668015]
[1770160153519,0.15312795,2226.3,2224.7,0.00546648]
[1770160155022,0.15312795,2226.3,2224.8,2.67799444]
[1770160155229,0.15312795,2227.0,2225.6,0.16121367]
[1770160155428,0.15312795,2227.4,2225.9,0.16121367]
[1770160155722,0.15312795,2227.4,2226.0,2.641]
[1770160156028,0.15312795,2227.8,2226.4,0.16121367]
[1770160156228,0.15312795,2228.4,2226.5,0.16121367]
[1770160156427,0.22471,2228.0,2226.4,0.16688713]
[1770160156621,0.15312795,2227.4,2226.4,0.00567346]
[1770160157325,0.15760243,2227.4,2226.4,0.00567346]
[1770160157825,0.00447448,2227.4,2226.4,0.00567346]
[1770160158028,0.00447448,2227.4,2226.7,2.67799444]
[1770160158222,0.00447448,2227.4,2226.4,0.00567346]
[1770160158527,0.15760243,2227.4,2226.5,2.67799444]
[1770160158728,0.15312795,2227.2,2226.4,0.00567346]
[1770160158928,0.15312795,2227.2,2225.8,0.16121367]
[1770160159128,0.15312795,2227.2,2225.9,2.67799444]
[1770160159629,0.15312795,2227.2,2226.1,2.67799444]
[1770160159930,0.15312795,2227.2,2226.1,0.00564647]
[1770160160423,0.15312795,2227.2,2226.1,2.68364091]
[1770160160624,0.00447448,2227.4,2226.6,2.67799444]
[1770160160825,0.00447448,2227.4,2226.5,2.67799444]
[1770160161029,0.17411058,2227.4,2226.5,2.67799444]
[1770160161229,0.17411058,2227.4,2226.1,0.00564647]
[1770160161723,0.2248,2227.2,2226.1,0.00564647]
[1770160161926,0.1696361,2227.1,2226.1,0.00564647]
[1770160162226,0.00447448,2227.4,2226.1,0.17034758]
[1770160162430,0.00447448,2227.4,2226.5,2.67799444]
[1770160162825,0.17411058,2227.4,2226.6,2.67799444]
[1770160163027,0.17411058,2227.4,2226.2,2.67799444]
[1770160163329,38.48337752,2230.6,2226.1,0.17034758]
[1770160163330,0.1696361,2228.7,2226.3,1.45706859]
[1770160163531,0.1696361,2228.7,2226.4,4.887]
[1770160163731,0.1699224,2228.3,2226.6,2.67799444]
[1770160163933,0.1699224,2228.3,2226.7,2.67799444]
[1770160164229,0.1699224,2228.1,2226.7,0.02015416]
[1770160164430,0.16974642,2227.9,2226.1,0.23055647]
[1770160164730,0.16974642,2227.7,2226.1,2.90855091]
[1770160164924,0.16974642,2228.0,2226.2,1.41673856]
[1770160165122,0.00556371,2228.1,2226.2,1.41673856]
[1770160165123,0.00556371,2228.1,2227.0,2.67799444]
[1770160165325,0.00556371,2228.1,2226.9,4.886]
[1770160165529,0.17531013,2228.1,2227.2,2.67799444]
[1770160165730,0.17531013,2228.1,2226.5,2.67799444]
[1770160166232,0.16974642,2227.6,2226.1,0.00564647]
[1770160166633,0.17028512,2227.4,2226.1,0.00564647]
[1770160166928,0.17028512,2227.1,2226.1,0.00564647]
[1770160167125,0.17028512,2227.6,2226.1,0.00564647]
[1770160167328,0.17028512,2227.6,2226.3,2.67799444]
[1770160167523,0.17028512,2228.0,2226.5,0.22486]
[1770160167726,0.17028512,2228.0,2226.7,2.67799444]
[1770160167931,0.17028512,2228.0,2226.8,2.67799444]
[1770160168426,0.17028512,2228.0,2226.5,0.22486]
[1770160168629,0.17028512,2228.0,2226.8,2.67799444]
[1770160169031,0.17028512,2228.0,2227.0,2.67799444]
[1770160169329,0.17028512,2228.0,2226.5,0.22486]
[1770160169330,0.17028512,2228.0,2226.9,2.67799444]
[1770160169530,0.17028512,2228.0,2226.8,2.67799444]
[1770160169726,0.00556371,2228.1,2226.8,2.67799444]
[1770160170027,0.39485888,2229.1,2227.2,0.22479]
[1770160170223,0.17024888,2228.8,2227.2,0.22479]
[1770160170428,0.17024888,2228.7,2227.1,2.247]
[1770160170825,0.17512338,2228.7,2227.5,2.67799444]
[1770160171229,0.17512338,2228.7,2227.7,2.67799444]
[1770160171432,0.17512338,2228.7,2227.7,0.00497618]
[1770160171929,0.17034321,2228.4,2226.7,2.247]
[1770160172232,0.17034321,2228.4,2226.9,2.67799444]
[1770160172432,0.17034321,2228.4,2227.1,2.67799444]
[1770160172636,0.17034321,2228.4,2227.0,2.67799444]
[1770160172928,0.17034321,2228.4,2227.4,2.67799444]
[1770160173131,0.17030536,2229.5,2228.3,2.67799444]
[1770160173330,0.17030536,2229.5,2228.1,0.2247]
[1770160173524,0.17030536,2229.5,2227.5,0.22476]
[1770160173729,0.17030536,2229.5,2227.6,7.56099444]
[1770160173925,0.17030536,2229.5,2227.7,3.78242069]
[1770160174226,0.17030536,2229.0,2227.5,2.247]
[1770160174426,0.17007117,2228.9,2227.5,2.247]
[1770160174627,0.17007117,2229.3,2228.0,0.22471]
[1770160174932,0.0048975,2229.5,2228.3,2.67799444]
[1770160175130,0.0048975,2229.5,2228.5,2.67799444]
[1770160175131,0.17496867,2229.5,2228.5,2.67799444]
[1770160175327,0.17496867,2229.5,2228.3,2.67799444]
[1770160175730,0.17007117,2231.0,2229.2,2.83341487]
[1770160176034,0.17007117,2230.8,2228.9,2.47162]
[1770160176236,0.17007117,2230.8,2229.0,2.247]
[1770160176438,0.17007117,2230.8,2229.0,2.47161]
[1770160176630,0.17381736,2230.8,2229.4,2.6779852]
[1770160176830,0.17381736,2230.8,2229.3,2.6779852]
[1770160177032,0.17228962,2230.5,2229.2,2.6779852]
[1770160177226,0.17228962,2230.5,2229.1,2.246]
[1770160177434,0.17228962,2230.5,2229.4,2.6779852]
[1770160177728,0.17228962,2230.5,2229.2,0.85287776]
[1770160177932,2.635,2231.7,2229.1,2.246]
[1770160177933,0.17228962,2232.0,2230.0,2.6779852]
[1770160178134,0.17228962,2232.1,2230.1,2.246]
[1770160178326,0.17228962,2232.1,2229.7,3.05795487]
[1770160178327,0.17784136,2231.9,2229.7,0.22454]
[1770160178526,0.17784136,2231.5,2229.8,0.22453]
[1770160178727,0.17784136,2231.5,2229.9,0.22452]
[1770160178931,0.17784136,2231.5,2229.8,0.65184193]
[1770160179129,0.17784136,2231.1,2229.1,3.89473958]
[1770160179334,0.17784136,2230.8,2229.0,4.88649771]
[1770160179534,0.22443,2230.9,2229.0,4.88649771]
[1770160179733,0.18292277,2231.5,2229.5,3.89473958]
[1770160180036,0.17784136,2231.2,2229.1,4.879]
[1770160180233,0.22429,2232.3,2230.3,0.16200343]
[1770160180434,0.22435,2231.7,2229.6,0.16140298]
[1770160180735,2.32303749,2231.6,2229.2,0.16140298]
[1770160181035,0.30239749,2231.6,2229.5,0.16140298]
[1770160181234,0.30624141,2231.6,2229.5,0.16140298]
[1770160181833,0.22439,2231.3,2229.5,0.16140298]
[1770160182233,0.1696361,2231.0,2229.1,2.40640298]
[1770160182534,0.1696361,2230.8,2229.2,0.77244179]
[1770160182734,4.878,2231.0,2229.2,0.77244179]
[1770160182735,0.1696361,2230.3,2229.2,0.77244179]
[1770160182935,0.3941161,2230.3,2229.0,0.00549771]
[1770160183136,0.1696361,2230.2,2229.0,0.00549771]
[1770160183738,7.71141487,2231.0,2229.0,0.00549771]
[1770160183739,0.1696361,2230.0,2229.0,0.00549771]
[1770160183939,0.1696361,2229.8,2228.2,2.245]
[1770160184140,0.1696361,2229.8,2228.4,2.67290379]
[1770160184335,0.1696361,2229.8,2228.5,2.67290379]
[1770160184733,0.1696361,2229.8,2228.7,2.67290379]
[1770160184942,0.1696361,2229.5,2228.7,0.00559114]
[1770160185144,0.1696361,2229.4,2227.7,0.16318958]
[1770160185442,0.1696361,2229.4,2227.9,2.67290379]
[1770160185942,0.1696361,2229.4,2228.3,2.67290379]
[1770160186135,0.1696361,2229.4,2228.3,2.67846088]
[1770160186340,0.1696361,2229.4,2228.5,2.67290379]
[1770160186739,0.1696361,2229.4,2228.7,2.67290379]
[1770160187141,0.1696361,2229.4,2228.9,2.67290379]
[1770160187343,0.1696361,2229.4,2229.1,2.67290379]
[1770160187539,2.4146361,2229.8,2229.0,2.67290379]
[1770160187739,2.4146361,2229.8,2228.8,2.67290379]
[1770160187945,0.1696361,2229.7,2228.8,2.67290379]
[1770160188146,0.1696361,2229.7,2228.9,2.67290379]
[1770160188341,0.1696361,2229.7,2228.3,0.16858056]
[1770160188342,0.1696361,2229.7,2228.8,2.67290379]
[1770160188645,0.1696361,2229.7,2229.1,2.67290379]
[1770160188844,0.1696361,2229.7,2229.0,2.67290379]
[1770160189345,0.1696361,2229.7,2229.2,2.67290379]
[1770160189545,0.1696361,2229.7,2229.0,2.67290379]
[1770160189939,0.1696361,2229.7,2229.2,2.67290379]
[1770160190145,0.1696361,2229.7,2228.8,2.67290379]
[1770160190545,0.1696361,2229.7,2229.0,2.67290379]
[1770160190740,0.1696361,2229.7,2228.8,2.67290379]
[1770160190945,0.1696361,2229.7,2229.0,2.67290379]
[1770160191147,0.1696361,2229.7,2228.8,2.67290379]
[1770160191743,0.1696361,2229.7,2229.0,2.67290379]
[1770160191946,0.16848309,2229.4,2228.7,2.67290379]
[1770160192144,0.16848309,2229.4,2228.3,0.00555709]
[1770160192346,0.16848309,2229.4,2228.5,2.67290379]
[1770160192545,0.16848309,2229.4,2228.6,2.67290379]
[1770160192946,0.16848309,2229.3,2228.7,2.67290379]
[1770160193151,0.16848309,2229.3,2228.5,2.67290379]
[1770160193351,0.16848309,2229.3,2228.6,2.67290379]
[1770160193751,0.16848309,2229.3,2228.3,0.00555709]
[1770160193752,0.16848309,2228.8,2228.3,0.00555709]
[1770160193945,0.22463,2228.9,2228.3,0.00555709]
[1770160194649,2.245,2229.3,2228.3,0.17165034]
[1770160197755,0.00548132,2230.0,2228.4,0.16037797]
[1770160197954,0.00548132,2230.0,2228.8,0.16037797]
[1770160198154,0.00548132,2230.0,2228.8,0.38500797]
[1770160198358,0.22443,2230.8,2229.4,0.16037797]
[1770160198558,2.245,2230.9,2229.5,0.16037797]
[1770160198754,2.245,2230.9,2229.7,0.38491797]
[1770160198950,2.245,2230.9,2229.8,0.16037797]
[1770160199358,2.24968994,2230.9,2229.8,0.16037797]
[1770160199755,0.15721728,2230.8,2229.8,0.16037797]
[1770160200052,0.15721728,2230.6,2229.4,0.16037797]
[1770160200258,0.38167728,2230.5,2229.2,0.16037797]
[1770160200458,0.22446,2230.5,2229.2,0.16037797]
[1770160200659,0.15721728,2230.4,2229.2,0.16037797]
[1770160201656,0.00468994,2230.9,2229.9,0.22452]
[1770160201860,2.40121728,2231.7,2230.2,0.16037797]
[1770160202056,2.40121728,2231.7,2230.4,0.16037797]
[1770160202457,0.15721728,2231.1,2229.9,0.00552958]
[1770160202657,0.15721728,2231.1,2229.9,0.16590755]
[1770160202858,0.38164728,2230.9,2229.9,0.16590755]
[1770160203459,0.15721728,2230.8,2229.9,0.00552958]
[1770160203757,0.15721728,2230.5,2229.3,0.16037797]
[1770160204752,2.244,2230.8,2229.3,0.16595438]
[1770160204962,2.40121728,2230.8,2229.4,0.16037797]
[1770160205463,2.244,2230.8,2229.5,0.16037797]
[1770160206760,2.244,2230.8,2229.6,0.16037797]
[1770160206960,2.244,2230.8,2229.7,0.16037797]
[1770160207859,2.40121728,2230.8,2229.7,0.16037797]
[1770160208769,0.15721728,2230.4,2229.4,0.16037797]
[1770160209164,0.15721728,2230.4,2229.3,0.00557641]
[1770160210162,0.15721728,2230.7,2229.3,0.16595438]
[1770160210364,2.244,2230.8,2229.8,0.16037797]
[1770160211663,0.00362662,2231.1,2230.2,0.16037797]
[1770160211864,0.30234244,2232.0,2230.6,0.16037797]
[1770160211865,0.07802244,2232.0,2230.6,0.16037797]
[1770160212064,2.244,2232.6,2231.2,0.16037797]
[1770160212271,2.244,2232.6,2231.3,0.16037797]
[1770160212563,0.00362662,2232.5,2231.3,0.16037797]
[1770160212868,0.15721728,2232.3,2231.3,0.0042242]
[1770160213063,0.00362662,2232.1,2231.3,0.0042242]
[1770160213263,0.00417246,2232.5,2231.3,0.16460217]
[1770160213465,0.00779908,2232.5,2231.3,0.16460217]
[1770160214067,0.00417246,2232.5,2231.3,0.16460217]
[1770160214762,0.00417246,2232.5,2231.5,0.16037797]
[1770160214959,0.15721728,2233.1,2231.6,0.16037797]
[1770160215561,0.15721728,2233.5,2231.9,0.16037797]
[1770160215768,0.15721728,2233.5,2232.0,0.16037797]
[1770160215963,0.16117636,2233.5,2232.0,0.16037797]
[1770160216466,0.00395908,2233.5,2232.0,0.16037797]
[1770160216860,0.00395908,2233.5,2232.2,0.16037797]
[1770160217266,0.16117636,2233.5,2232.2,0.16037797]
[1770160217661,0.00362662,2233.2,2232.2,0.16037797]
[1770160217968,0.22418,2233.4,2232.2,0.16037797]
[1770160218169,0.00395908,2233.5,2232.2,0.16037797]
[1770160218371,0.0075857,2233.5,2232.2,0.16037797]
[1770160219469,0.00395908,2233.5,2232.2,0.16037797]
[1770160219870,0.0075857,2233.5,2232.2,0.16037797]
[1770160220268,0.15721728,2233.3,2232.2,0.16037797]
[1770160220469,0.00362662,2233.2,2232.2,0.16037797]
[1770160220672,0.00362662,2233.1,2232.2,0.16037797]
[1770160221071,0.00362662,2233.0,2232.2,0.16037797]
[1770160221366,0.00362662,2233.1,2232.2,0.16037797]
[1770160221765,0.00362662,2233.0,2232.2,0.16037797]
[1770160222171,0.15721728,2233.3,2232.2,0.16037797]
[1770160222370,0.00362662,2233.1,2232.2,0.16037797]
[1770160222670,0.15721728,2233.3,2232.2,0.16037797]
[1770160223368,0.15713542,2232.7,2231.6,0.15521689]
[1770160223576,0.38140542,2232.5,2231.6,0.15521689]
[1770160223771,0.2243,2232.2,2231.3,0.0042242]
[1770160224274,0.00362662,2232.0,2231.3,0.0042242]
[1770160224774,0.00362662,2231.9,2231.3,0.0042242]
[1770160224968,0.22424,2232.7,2231.3,0.15944109]
[1770160225170,2.242,2233.0,2231.4,0.15521689]
[1770160225373,0.15713542,2232.8,2231.4,0.15521689]
[1770160225673,0.16076204,2232.8,2231.4,0.15521689]
[1770160225875,0.00362662,2232.6,2231.4,0.15521689]
[1770160226068,0.22429,2232.3,2231.4,0.15521689]
[1770160226273,0.00537327,2232.6,2231.3,0.0042242]
[1770160226274,0.00362662,2232.1,2231.3,0.0042242]
[1770160226567,0.38143542,2232.1,2231.3,0.0042242]
[1770160226873,0.00362662,2231.8,2231.3,0.15944109]
[1770160227083,0.15713542,2232.4,2231.3,0.15944109]
[1770160227375,0.16076204,2232.2,2231.3,0.15944109]
[1770160227874,0.00362662,2231.9,2231.3,0.0042242]
[1770160228171,0.00537327,2232.6,2231.3,0.0042242]
[1770160228172,0.38143542,2232.1,2231.3,0.0042242]
[1770160228373,0.38506204,2232.1,2231.3,0.0042242]
[1770160228575,0.00362662,2231.8,2231.3,0.0042242]
[1770160228976,0.38143542,2232.1,2231.3,0.0042242]
[1770160228977,0.00362662,2231.7,2231.3,0.0042242]
[1770160229173,0.00362662,2232.0,2231.3,0.15944109]
[1770160229474,0.15713542,2232.5,2231.3,0.15944109]
[1770160229475,0.00362662,2232.3,2231.3,0.15944109]
[1770160229876,0.00362662,2232.2,2231.3,0.15944109]
[1770160230070,0.00362662,2232.3,2231.3,0.15944109]
[1770160230470,0.00362662,2232.2,2231.3,0.15944109]
[1770160230874,0.00362662,2232.1,2231.3,0.15944109]
[1770160231077,0.22427,2232.4,2231.3,0.15944109]
[1770160231078,0.00362662,2232.2,2231.3,0.15944109]
[1770160231372,0.22432,2231.9,2231.3,0.0042242]
[1770160231578,0.22796662,2231.8,2230.5,0.15521689]
[1770160231779,0.22434,2231.7,2230.5,0.15521689]
[1770160232178,0.22796662,2231.7,2230.5,0.15521689]
[1770160232379,0.15713542,2231.5,2230.5,0.15521689]
[1770160232574,0.15713542,2231.5,2230.5,0.15856601]
[1770160232878,2.242,2232.1,2230.6,0.15521689]
[1770160233081,0.38144542,2232.0,2230.7,0.15521689]
[1770160233578,0.22794662,2231.9,2230.7,0.15521689]
[1770160233778,0.38508204,2231.9,2230.7,0.15521689]
[1770160234080,0.00362662,2231.8,2230.7,0.15521689]
[1770160234878,0.38145542,2232.0,2230.7,0.15521689]
[1770160235079,0.38508204,2232.0,2230.7,0.15521689]
[1770160235382,0.22794662,2231.9,2230.7,0.15521689]
[1770160235783,0.15713542,2231.9,2230.7,0.15521689]
[1770160235983,0.22797662,2231.7,2230.7,0.15521689]
[1770160236283,0.22438,2231.4,2230.5,0.00334912]
[1770160236478,0.22438,2231.4,2230.5,0.15856601]
[1770160236674,0.22800662,2231.4,2230.5,0.15856601]
[1770160236873,0.15713542,2231.3,2230.5,0.00334912]
[1770160237083,0.00362662,2231.2,2230.5,0.00334912]
[1770160237275,0.22433,2231.9,2230.6,0.15521689]
[1770160237474,0.38147542,2231.8,2230.6,0.15521689]
[1770160237681,0.38510204,2231.8,2230.6,0.15521689]
[1770160237882,0.00362662,2231.6,2230.6,0.15521689]
[1770160238279,0.00362662,2231.5,2230.6,0.15521689]
[1770160238586,0.00362662,2231.6,2230.6,0.15521689]
[1770160239082,0.00362662,2231.5,2230.6,0.15521689]
[1770160239278,2.242,2232.1,2230.8,0.15521689]
[1770160239485,0.22429,2232.3,2231.0,0.15521689]
[1770160239882,0.00362662,2232.2,2231.0,0.15521689]
[1770160240283,0.00362662,2232.2,2231.0,2.8142825]
[1770160240484,0.00362662,2232.2,2231.1,0.15521689]
[1770160240883,0.00362662,2232.1,2231.1,0.15521689]
[1770160241289,0.22425,2232.7,2231.3,2.8142825]
[1770160241488,0.00899989,2232.6,2231.4,0.15521689]
[1770160241688,0.00362662,2232.5,2231.4,0.15521689]
[1770160241886,0.16250869,2232.6,2231.4,0.15521689]
[1770160242090,0.00362662,2232.3,2231.4,0.15521689]
[1770160242585,0.00362662,2232.1,2231.2,2.65906561]
[1770160242789,0.00362662,2232.1,2231.1,0.15521689]
[1770160243086,0.00362662,2232.0,2231.1,0.15521689]
[1770160243293,0.00362662,2232.1,2231.1,0.15521689]
[1770160243686,0.16076204,2232.1,2231.0,2.18018561]
[1770160243892,0.00362662,2231.8,2230.9,0.15521689]
[1770160244091,0.38144542,2232.0,2230.9,0.15521689]
[1770160244291,0.00362662,2231.8,2230.9,0.15521689]
[1770160244596,0.15713542,2232.4,2230.9,0.15521689]
[1770160244994,0.16076204,2232.4,2230.9,0.15521689]
[1770160245890,0.16076204,2232.4,2230.9,4.04995647]
[1770160246091,0.00362662,2232.3,2231.0,0.15521689]
[1770160246490,0.00537327,2232.6,2231.4,0.15521689]
[1770160246790,0.00537327,2232.6,2231.5,0.15521689]
[1770160246985,0.00537327,2232.6,2231.5,2.78521689]
[1770160247188,0.00899989,2232.6,2231.6,0.15521689]
[1770160247389,0.00537327,2232.6,2231.6,4.04995647]
[1770160247594,41.11337752,2233.8,2231.5,8.15997547]
[1770160247595,0.45920516,2233.9,2232.4,0.15521689]
[1770160247795,0.45920516,2233.9,2232.5,0.15521689]
[1770160247992,0.00362662,2233.6,2232.5,0.15521689]
[1770160248187,0.2241,2234.2,2232.9,0.15521689]
[1770160248391,0.15713542,2234.1,2232.9,0.15521689]
[1770160248593,0.00362662,2233.6,2232.9,0.15855781]
[1770160248793,0.00362662,2233.5,2232.9,0.15855781]
[1770160248991,0.00362662,2233.3,2232.9,0.00334092]
[1770160249392,0.15713542,2233.7,2232.9,0.00334092]
[1770160249595,0.22412,2233.9,2232.9,0.00334092]
[1770160249794,0.22412,2233.9,2232.9,0.15855781]
[1770160249990,0.15713542,2233.8,2232.9,0.00334092]
[1770160250192,0.22414,2233.7,2232.9,0.00334092]
[1770160250698,0.15971302,2233.4,2232.2,0.16085698]
[1770160250892,0.15971302,2233.3,2232.2,0.16085698]
[1770160251696,0.15971302,2233.3,2232.2,0.1658774]
[1770160251997,0.15971302,2233.1,2232.2,0.00502042]
[1770160252290,0.15971302,2232.9,2232.2,0.00502042]
[1770160252497,0.15971302,2232.6,2231.3,0.16085698]
[1770160252695,0.15971302,2232.5,2231.3,0.16085698]
[1770160252896,0.15971302,2232.4,2231.3,0.16085698]
[1770160253396,0.16515453,2232.4,2231.3,0.16668249]
[1770160253896,0.15971302,2232.3,2231.3,0.16668249]